[Event "Titled Tuesday Blitz April 12 Late 2022"]
[White "Caruana, Fabiano"]
[Black "Santos Ruiz, Miguel"]
[WhiteFideId "2020009"]
[BlackFideId "22291482"]
[WhiteElo "2744"]
[BlackElo "2486"]
[Result "1-0"]
[Round "05"]
[TimeControl "180+1"]
[Date "2022.04.12"]
[WhiteClock "0:00:12"]
[BlackClock "0:00:05"]

1. e4 {[%clk 0:03:00]}  e5 {[%clk 0:02:59]} 2. Nf3 {[%clk 0:02:57]}  Nc6 {[%clk 0:02:58]} 3. Bb5 {[%clk 0:02:58]}  Nf6 {[%clk 0:02:58]} 4. O-O {[%clk 0:02:59]}  Nxe4 {[%clk 0:02:57]} 5. Re1 {[%clk 0:02:59]}  Nd6 {[%clk 0:02:55]} 6. Nxe5 {[%clk 0:03:00]}  Be7 {[%clk 0:02:55]} 7. Bf1 {[%clk 0:03:00]}  Nxe5 {[%clk 0:02:55]} 8. Rxe5 {[%clk 0:03:00]}  O-O {[%clk 0:02:55]} 9. Nc3 {[%clk 0:03:00]}  Ne8 {[%clk 0:02:51]} 10. Nd5 {[%clk 0:02:59]}  Bd6 {[%clk 0:02:51]} 11. Re1 {[%clk 0:03:00]}  c6 {[%clk 0:02:51]} 12. Ne3 {[%clk 0:03:00]}  Be7 {[%clk 0:02:51]} 13. Nf5 {[%clk 0:02:51]}  Bg5 {[%clk 0:02:42]} 14. d3 {[%clk 0:02:49]}  d5 {[%clk 0:02:27]} 15. Qf3 {[%clk 0:01:54]}  Bxf5 {[%clk 0:02:11]} 16. Qxf5 {[%clk 0:01:52]}  Bxc1 {[%clk 0:02:11]} 17. Raxc1 {[%clk 0:01:52]}  Nf6 {[%clk 0:02:11]} 18. c4 {[%clk 0:01:49]}  Qb6 {[%clk 0:02:06]} 19. b3 {[%clk 0:01:45]}  Rfe8 {[%clk 0:02:06]} 20. g3 {[%clk 0:01:29]}  Qa5 {[%clk 0:01:57]} 21. Rxe8+ {[%clk 0:01:28]}  Rxe8 {[%clk 0:01:57]} 22. cxd5 {[%clk 0:01:28]}  Qxd5 {[%clk 0:01:52]} 23. Qxd5 {[%clk 0:01:27]}  Nxd5 {[%clk 0:01:53]} 24. a3 {[%clk 0:01:23]}  g6 {[%clk 0:01:46]} 25. Bg2 {[%clk 0:01:22]}  Nc7 {[%clk 0:01:42]} 26. d4 {[%clk 0:01:15]}  Rd8 {[%clk 0:01:38]} 27. Rd1 {[%clk 0:01:15]}  Nb5 {[%clk 0:01:37]} 28. d5 {[%clk 0:01:11]}  Nc3 {[%clk 0:01:37]} 29. Rd3 {[%clk 0:01:03]}  Nxd5 {[%clk 0:01:36]} 30. b4 {[%clk 0:01:03]}  a6 {[%clk 0:01:33]} 31. a4 {[%clk 0:01:01]}  Kf8 {[%clk 0:01:32]} 32. b5 {[%clk 0:01:01]}  axb5 {[%clk 0:01:32]} 33. axb5 {[%clk 0:01:02]}  Ke7 {[%clk 0:01:32]} 34. bxc6 {[%clk 0:01:02]}  bxc6 {[%clk 0:01:33]} 35. h4 {[%clk 0:01:01]}  h5 {[%clk 0:01:30]} 36. Ra3 {[%clk 0:01:00]}  Kd6 {[%clk 0:01:29]} 37. Ra7 {[%clk 0:00:58]}  Rd7 {[%clk 0:01:29]} 38. Ra8 {[%clk 0:00:58]}  Rc7 {[%clk 0:01:27]} 39. Bf3 {[%clk 0:00:56]}  Nf6 {[%clk 0:01:21]} 40. Be2 {[%clk 0:00:54]}  Kd5 {[%clk 0:01:14]} 41. Kg2 {[%clk 0:00:48]}  c5 {[%clk 0:01:13]} 42. Ra6 {[%clk 0:00:49]}  Ne8 {[%clk 0:01:11]} 43. Bf3+ {[%clk 0:00:48]}  Ke5 {[%clk 0:01:10]} 44. Ra5 {[%clk 0:00:42]}  Nd6 {[%clk 0:01:09]} 45. Kf1 {[%clk 0:00:39]}  Ke6 {[%clk 0:01:06]} 46. Ke2 {[%clk 0:00:38]}  c4 {[%clk 0:00:58]} 47. Kd2 {[%clk 0:00:35]}  Rc8 {[%clk 0:00:56]} 48. Kc3 {[%clk 0:00:34]}  Rb8 {[%clk 0:00:53]} 49. Bd5+ {[%clk 0:00:31]}  Kf6 {[%clk 0:00:51]} 50. Kd4 {[%clk 0:00:30]}  Rb2 {[%clk 0:00:46]} 51. Ra6 {[%clk 0:00:27]}  Ke7 {[%clk 0:00:39]} 52. Ra7+ {[%clk 0:00:24]}  Kd8 {[%clk 0:00:11]} 53. Kc5 {[%clk 0:00:22]}  Nf5 {[%clk 0:00:05]} 54. Bxc4 {[%clk 0:00:20]}  Rxf2 {[%clk 0:00:05]} 55. Rxf7 {[%clk 0:00:19]}  Rf3 {[%clk 0:00:04]} 56. Be6 {[%clk 0:00:16]}  Nxh4 {[%clk 0:00:04]} 57. Rd7+ {[%clk 0:00:15]}  Ke8 {[%clk 0:00:04]} 58. gxh4 {[%clk 0:00:16]}  Rf4 {[%clk 0:00:05]} 59. Rh7 {[%clk 0:00:12]}  Rxh4 {[%clk 0:00:04]} 60. Kd6 {[%clk 0:00:12]}  Rd4+ {[%clk 0:00:05]} 61. Bd5 {[%clk 0:00:12]}  Kf8 {[%clk 0:00:05]} 62. Rf7+ {[%clk 0:00:12]}  Ke8 {[%clk 0:00:05]} 63. Rg7 {[%clk 0:00:12]} 1-0


[Site "https://www.chess.com"]

[Event "Titled Tuesday Blitz April 12 Late 2022"]
[White "Dahlgren, James Allen"]
[Black "Rego, Vinicius V. de Almeida"]
[WhiteFideId "22256873"]
[BlackFideId "2106485"]
[WhiteElo "2096"]
[BlackElo "2345"]
[Result "0-1"]
[Round "05"]
[TimeControl "180+1"]
[Date "2022.04.13"]
[WhiteClock "0:00:51"]
[BlackClock "0:00:50"]

1. d3 {[%clk 0:02:57]}  c5 {[%clk 0:03:00]} 2. f4 {[%clk 0:02:57]}  g6 {[%clk 0:03:01]} 3. Nf3 {[%clk 0:02:58]}  Bg7 {[%clk 0:03:01]} 4. g3 {[%clk 0:02:58]}  Nc6 {[%clk 0:03:02]} 5. Bg2 {[%clk 0:02:59]}  d5 {[%clk 0:03:03]} 6. O-O {[%clk 0:03:00]}  Nf6 {[%clk 0:03:03]} 7. Nbd2 {[%clk 0:02:59]}  O-O {[%clk 0:03:04]} 8. e4 {[%clk 0:02:59]}  dxe4 {[%clk 0:03:03]} 9. dxe4 {[%clk 0:02:59]}  Bg4 {[%clk 0:03:02]} 10. c3 {[%clk 0:02:58]}  Nd7 {[%clk 0:02:56]} 11. h3 {[%clk 0:02:57]}  Bxf3 {[%clk 0:02:47]} 12. Qxf3 {[%clk 0:02:58]}  Qc7 {[%clk 0:02:42]} 13. a4 {[%clk 0:02:56]}  a6 {[%clk 0:02:38]} 14. g4 {[%clk 0:02:49]}  b5 {[%clk 0:02:31]} 15. axb5 {[%clk 0:02:47]}  axb5 {[%clk 0:02:32]} 16. Rxa8 {[%clk 0:02:48]}  Rxa8 {[%clk 0:02:33]} 17. e5 {[%clk 0:02:46]}  Ra6 {[%clk 0:02:29]} 18. Ne4 {[%clk 0:02:34]}  Nd8 {[%clk 0:02:15]} 19. Be3 {[%clk 0:02:26]}  Ra2 {[%clk 0:02:00]} 20. Rf2 {[%clk 0:02:24]}  b4 {[%clk 0:01:56]} 21. c4 {[%clk 0:02:13]}  Ne6 {[%clk 0:01:52]} 22. b3 {[%clk 0:02:03]}  Rxf2 {[%clk 0:01:48]} 23. Qxf2 {[%clk 0:02:01]}  g5 {[%clk 0:01:45]} 24. f5 {[%clk 0:01:56]}  Nf4 {[%clk 0:01:36]} 25. Nxg5 {[%clk 0:01:39]}  Nxg2 {[%clk 0:01:32]} 26. Qxg2 {[%clk 0:01:39]}  Qxe5 {[%clk 0:01:30]} 27. Kf2 {[%clk 0:01:19]}  Qb2+ {[%clk 0:01:17]} 28. Kf3 {[%clk 0:01:19]}  Qxb3 {[%clk 0:01:17]} 29. Qd2 {[%clk 0:01:11]}  Bd4 {[%clk 0:01:16]} 30. Kf4 {[%clk 0:01:07]}  Qxc4 {[%clk 0:01:10]} 31. Bxd4 {[%clk 0:01:03]}  cxd4 {[%clk 0:01:11]} 32. Ke4 {[%clk 0:01:00]}  Nc5+ {[%clk 0:01:10]} 33. Kf3 {[%clk 0:00:59]}  b3 {[%clk 0:01:03]} 34. Qa5 {[%clk 0:00:52]}  Qd3+ {[%clk 0:00:54]} 35. Kf4 {[%clk 0:00:51]}  Qe3# {[%clk 0:00:50]} 0-1


[Site "https://www.chess.com"]

[Event "Titled Tuesday Blitz April 12 Late 2022"]
[White "Djokic, Mihailo"]
[Black "Moussard, Jules"]
[WhiteFideId "976440"]
[BlackFideId "642908"]
[WhiteElo "2202"]
[BlackElo "2589"]
[Result "0-1"]
[Round "05"]
[TimeControl "180+1"]
[Date "2022.04.12"]
[WhiteClock "0:00:01"]
[BlackClock "0:00:14"]

1. e4 {[%clk 0:02:48]}  g6 {[%clk 0:02:52]} 2. d4 {[%clk 0:02:48]}  Bg7 {[%clk 0:02:48]} 3. Nc3 {[%clk 0:02:48]}  d6 {[%clk 0:02:47]} 4. Be3 {[%clk 0:02:47]}  a6 {[%clk 0:02:41]} 5. Qd2 {[%clk 0:02:47]}  b5 {[%clk 0:02:38]} 6. a4 {[%clk 0:02:46]}  b4 {[%clk 0:02:38]} 7. Nce2 {[%clk 0:02:46]}  Bb7 {[%clk 0:02:37]} 8. Ng3 {[%clk 0:02:45]}  a5 {[%clk 0:02:37]} 9. Bd3 {[%clk 0:02:43]}  Nd7 {[%clk 0:02:36]} 10. Nf3 {[%clk 0:02:42]}  c5 {[%clk 0:02:27]} 11. c3 {[%clk 0:02:42]}  Ngf6 {[%clk 0:02:24]} 12. Bh6 {[%clk 0:02:41]}  Bxh6 {[%clk 0:02:22]} 13. Qxh6 {[%clk 0:02:42]}  Qc7 {[%clk 0:02:14]} 14. O-O {[%clk 0:02:30]}  O-O-O {[%clk 0:02:08]} 15. Rac1 {[%clk 0:02:24]}  Kb8 {[%clk 0:02:05]} 16. cxb4 {[%clk 0:02:06]}  axb4 {[%clk 0:02:05]} 17. b3 {[%clk 0:02:06]}  Qb6 {[%clk 0:02:01]} 18. d5 {[%clk 0:01:57]}  Ng4 {[%clk 0:01:43]} 19. Qd2 {[%clk 0:01:48]}  h5 {[%clk 0:01:42]} 20. h3 {[%clk 0:01:46]}  h4 {[%clk 0:01:35]} 21. Ne2 {[%clk 0:01:37]}  Nge5 {[%clk 0:01:35]} 22. Nxe5 {[%clk 0:01:36]}  Nxe5 {[%clk 0:01:36]} 23. Bb5 {[%clk 0:01:28]}  g5 {[%clk 0:01:34]} 24. f4 {[%clk 0:01:00]}  gxf4 {[%clk 0:01:25]} 25. Kh2 {[%clk 0:00:40]}  Rdg8 {[%clk 0:01:17]} 26. Nxf4 {[%clk 0:00:32]}  Rg3 {[%clk 0:01:16]} 27. Bc4 {[%clk 0:00:26]}  Rhg8 {[%clk 0:01:14]} 28. Rf2 {[%clk 0:00:20]}  Bc8 {[%clk 0:01:11]} 29. Rc2 {[%clk 0:00:13]}  Qd8 {[%clk 0:00:56]} 30. Qe2 {[%clk 0:00:11]}  f5 {[%clk 0:00:46]} 31. Ba6 {[%clk 0:00:06]}  Bxa6 {[%clk 0:00:35]} 32. Qxa6 {[%clk 0:00:06]}  Qc8 {[%clk 0:00:35]} 33. Qb5+ {[%clk 0:00:06]}  Qb7 {[%clk 0:00:35]} 34. Qxb7+ {[%clk 0:00:05]}  Kxb7 {[%clk 0:00:36]} 35. exf5 {[%clk 0:00:03]}  Rxb3 {[%clk 0:00:36]} 36. Rce2 {[%clk 0:00:01]}  Rbg3 {[%clk 0:00:20]} 37. Ne6 {[%clk 0:00:01]}  b3 {[%clk 0:00:18]} 38. Re1 {[%clk 0:00:01]}  c4 {[%clk 0:00:18]} 39. Re4 {[%clk 0:00:01]}  Kb6 {[%clk 0:00:16]} 40. Nd4 {[%clk 0:00:01]}  Kc5 {[%clk 0:00:16]} 41. Ne2 {[%clk 0:00:01]}  Kxd5 {[%clk 0:00:15]} 42. Rxh4 {[%clk 0:00:01]}  Rxg2+ {[%clk 0:00:14]} 43. Rxg2 {[%clk 0:00:01]}  Nf3+ {[%clk 0:00:14]} 44. Kh1 {[%clk 0:00:02]}  Rxg2 {[%clk 0:00:15]} 45. Nf4+ {[%clk 0:00:02]}  Kc5 {[%clk 0:00:14]} 46. Kxg2 {[%clk 0:00:02]}  Nxh4+ {[%clk 0:00:14]} 47. Kg3 {[%clk 0:00:02]}  Nxf5+ {[%clk 0:00:15]} 48. Kf3 {[%clk 0:00:03]}  b2 {[%clk 0:00:15]} 49. Ne6+ {[%clk 0:00:01]}  Kb4 {[%clk 0:00:14]} 0-1


[Site "https://www.chess.com"]

[Event "Titled Tuesday Blitz April 12 Late 2022"]
[White "Domingo Nunez, Alejandro"]
[Black "Miszler, Levente"]
[WhiteFideId "22245561"]
[BlackFideId "763276"]
[WhiteElo "2215"]
[BlackElo "1966"]
[Result "0-1"]
[Round "05"]
[TimeControl "180+1"]
[Date "2022.04.13"]
[WhiteClock "0:00:29"]
[BlackClock "0:00:08"]

1. Nf3 {[%clk 0:03:00]}  e6 {[%clk 0:03:00]} 2. g3 {[%clk 0:02:59]}  Nf6 {[%clk 0:02:59]} 3. Bg2 {[%clk 0:03:00]}  b6 {[%clk 0:02:58]} 4. O-O {[%clk 0:03:01]}  Bb7 {[%clk 0:02:58]} 5. c4 {[%clk 0:03:00]}  Be7 {[%clk 0:02:58]} 6. b3 {[%clk 0:03:00]}  O-O {[%clk 0:02:59]} 7. Bb2 {[%clk 0:02:59]}  c5 {[%clk 0:02:57]} 8. e3 {[%clk 0:02:59]}  Nc6 {[%clk 0:02:56]} 9. Qe2 {[%clk 0:03:00]}  d5 {[%clk 0:02:55]} 10. cxd5 {[%clk 0:03:00]}  Nxd5 {[%clk 0:02:53]} 11. d4 {[%clk 0:03:00]}  cxd4 {[%clk 0:02:50]} 12. exd4 {[%clk 0:02:58]}  Rc8 {[%clk 0:02:48]} 13. Nbd2 {[%clk 0:02:58]}  Ncb4 {[%clk 0:02:47]} 14. Rfc1 {[%clk 0:02:56]}  Bf6 {[%clk 0:02:19]} 15. a3 {[%clk 0:02:49]}  Ba6 {[%clk 0:02:13]} 16. Nc4 {[%clk 0:02:49]}  Nc6 {[%clk 0:02:09]} 17. Qe4 {[%clk 0:02:45]}  Qd7 {[%clk 0:01:56]} 18. Rc2 {[%clk 0:02:43]}  Rfd8 {[%clk 0:01:55]} 19. Rac1 {[%clk 0:02:43]}  Nce7 {[%clk 0:01:52]} 20. Nfe5 {[%clk 0:02:27]}  Qb5 {[%clk 0:01:45]} 21. b4 {[%clk 0:02:15]}  Qa4 {[%clk 0:01:23]} 22. Bf1 {[%clk 0:02:08]}  Nf5 {[%clk 0:01:09]} 23. Bd3 {[%clk 0:01:50]}  g6 {[%clk 0:00:53]} 24. h4 {[%clk 0:01:41]}  Bxc4 {[%clk 0:00:51]} 25. Bxc4 {[%clk 0:01:39]}  Nd6 {[%clk 0:00:51]} 26. Qe2 {[%clk 0:01:32]}  Nxc4 {[%clk 0:00:50]} 27. Rxc4 {[%clk 0:01:30]}  Rxc4 {[%clk 0:00:50]} 28. Qxc4 {[%clk 0:01:31]}  Bxe5 {[%clk 0:00:43]} 29. dxe5 {[%clk 0:01:31]}  Ne7 {[%clk 0:00:38]} 30. Qg4 {[%clk 0:01:10]}  h5 {[%clk 0:00:34]} 31. Qg5 {[%clk 0:01:02]}  Rd1+ {[%clk 0:00:34]} 32. Kh2 {[%clk 0:01:02]}  Rxc1 {[%clk 0:00:29]} 33. Bxc1 {[%clk 0:01:03]}  Qc2 {[%clk 0:00:24]} 34. Be3 {[%clk 0:00:56]}  Nf5 {[%clk 0:00:20]} 35. Qd8+ {[%clk 0:00:43]}  Kg7 {[%clk 0:00:20]} 36. Qf6+ {[%clk 0:00:43]}  Kg8 {[%clk 0:00:20]} 37. Kg1 {[%clk 0:00:34]}  Nxe3 {[%clk 0:00:19]} 38. fxe3 {[%clk 0:00:35]}  Qc1+ {[%clk 0:00:18]} 39. Kf2 {[%clk 0:00:35]}  Qxa3 {[%clk 0:00:18]} 40. Qd8+ {[%clk 0:00:34]}  Kg7 {[%clk 0:00:18]} 41. Qe7 {[%clk 0:00:35]}  Qb2+ {[%clk 0:00:12]} 42. Kf3 {[%clk 0:00:27]}  Qxe5 {[%clk 0:00:13]} 43. Qxa7 {[%clk 0:00:27]}  Qd5+ {[%clk 0:00:11]} 44. e4 {[%clk 0:00:20]}  Qd3+ {[%clk 0:00:11]} 45. Kf4 {[%clk 0:00:21]}  Qd2+ {[%clk 0:00:10]} 46. Kf3 {[%clk 0:00:19]}  Qxb4 {[%clk 0:00:10]} 47. Qc7 {[%clk 0:00:20]}  Qb3+ {[%clk 0:00:09]} 48. Kf4 {[%clk 0:00:20]}  Qb5 {[%clk 0:00:07]} 49. Qd6 {[%clk 0:00:16]}  Qc5 {[%clk 0:00:06]} 50. Qd8 {[%clk 0:00:16]}  b5 {[%clk 0:00:05]} 51. e5 {[%clk 0:00:17]}  Qc4+ {[%clk 0:00:04]} 52. Kf3 {[%clk 0:00:17]}  Qc3+ {[%clk 0:00:03]} 53. Kf4 {[%clk 0:00:17]}  Qc5 {[%clk 0:00:03]} 54. Qf6+ {[%clk 0:00:16]}  Kg8 {[%clk 0:00:03]} 55. Kg5 {[%clk 0:00:16]}  Qe3+ {[%clk 0:00:02]} 56. Qf4 {[%clk 0:00:16]}  Qxf4+ {[%clk 0:00:02]} 57. gxf4 {[%clk 0:00:16]}  b4 {[%clk 0:00:01]} 58. f5 {[%clk 0:00:17]}  gxf5 {[%clk 0:00:02]} 59. Kf6 {[%clk 0:00:18]}  b3 {[%clk 0:00:02]} 60. Kg5 {[%clk 0:00:18]}  b2 {[%clk 0:00:03]} 61. Kf4 {[%clk 0:00:19]}  b1=Q {[%clk 0:00:03]} 62. Kf3 {[%clk 0:00:20]}  Qe4+ {[%clk 0:00:03]} 63. Kg3 {[%clk 0:00:21]}  Qxe5+ {[%clk 0:00:04]} 64. Kg2 {[%clk 0:00:21]}  Qe4+ {[%clk 0:00:05]} 65. Kh3 {[%clk 0:00:22]}  Qg4+ {[%clk 0:00:05]} 66. Kh2 {[%clk 0:00:23]}  Qxh4+ {[%clk 0:00:06]} 67. Kg2 {[%clk 0:00:23]}  Qg4+ {[%clk 0:00:07]} 68. Kf2 {[%clk 0:00:24]}  f4 {[%clk 0:00:07]} 69. Ke1 {[%clk 0:00:25]}  f3 {[%clk 0:00:07]} 70. Kd2 {[%clk 0:00:26]}  Qg2+ {[%clk 0:00:07]} 71. Kc3 {[%clk 0:00:27]}  f2 {[%clk 0:00:08]} 72. Kb2 {[%clk 0:00:27]}  f1=Q+ {[%clk 0:00:08]} 73. Ka3 {[%clk 0:00:28]}  Qb1 {[%clk 0:00:07]} 74. Ka4 {[%clk 0:00:29]}  Qga2# {[%clk 0:00:08]} 0-1


[Site "https://www.chess.com"]

[Event "Titled Tuesday Blitz April 12 Late 2022"]
[White "Estrada Nieto, Julian"]
[Black "Cagara, Paulina"]
[WhiteFideId "5101018"]
[BlackFideId "1124870"]
[WhiteElo "2252"]
[BlackElo "1780"]
[Result "0-1"]
[Round "05"]
[TimeControl "180+1"]
[Date "2022.04.13"]
[WhiteClock "0:00:10"]
[BlackClock "0:00:05"]

1. e4 {[%clk 0:02:27]}  c6 {[%clk 0:02:58]} 2. d4 {[%clk 0:02:26]}  d5 {[%clk 0:02:58]} 3. exd5 {[%clk 0:02:27]}  cxd5 {[%clk 0:02:58]} 4. Bd3 {[%clk 0:02:27]}  Nc6 {[%clk 0:02:56]} 5. c3 {[%clk 0:02:27]}  Nf6 {[%clk 0:02:55]} 6. Nf3 {[%clk 0:02:28]}  Bg4 {[%clk 0:02:52]} 7. Bf4 {[%clk 0:02:27]}  e6 {[%clk 0:02:51]} 8. O-O {[%clk 0:02:28]}  Bd6 {[%clk 0:02:49]} 9. Bxd6 {[%clk 0:02:28]}  Qxd6 {[%clk 0:02:48]} 10. Nbd2 {[%clk 0:02:28]}  O-O {[%clk 0:02:48]} 11. Qb3 {[%clk 0:02:29]}  a6 {[%clk 0:02:46]} 12. a4 {[%clk 0:02:28]}  Rab8 {[%clk 0:02:45]} 13. a5 {[%clk 0:02:27]}  Ne7 {[%clk 0:02:38]} 14. Rfe1 {[%clk 0:02:15]}  b5 {[%clk 0:02:32]} 15. axb6 {[%clk 0:02:13]}  Rxb6 {[%clk 0:02:31]} 16. Qa2 {[%clk 0:02:09]}  Rfb8 {[%clk 0:02:26]} 17. b4 {[%clk 0:02:09]}  Rc8 {[%clk 0:02:25]} 18. Rec1 {[%clk 0:02:07]}  g6 {[%clk 0:02:20]} 19. Ne5 {[%clk 0:02:01]}  Bf5 {[%clk 0:02:18]} 20. Bxf5 {[%clk 0:01:58]}  Nxf5 {[%clk 0:02:16]} 21. Nb3 {[%clk 0:01:59]}  Ne4 {[%clk 0:02:11]} 22. Nc5 {[%clk 0:01:56]}  f6 {[%clk 0:01:59]} 23. Ned3 {[%clk 0:01:49]}  Nh4 {[%clk 0:01:50]} 24. Qe2 {[%clk 0:01:35]}  e5 {[%clk 0:01:40]} 25. f3 {[%clk 0:01:29]}  Ng5 {[%clk 0:01:33]} 26. dxe5 {[%clk 0:01:27]}  fxe5 {[%clk 0:01:26]} 27. Qf2 {[%clk 0:01:11]}  Nhxf3+ {[%clk 0:01:20]} 28. gxf3 {[%clk 0:01:10]}  Nh3+ {[%clk 0:01:20]} 29. Kg2 {[%clk 0:01:09]}  Nxf2 {[%clk 0:01:20]} 30. Nxf2 {[%clk 0:01:09]}  Rxc5 {[%clk 0:01:12]} 31. bxc5 {[%clk 0:01:08]}  Qxc5 {[%clk 0:01:12]} 32. Rc2 {[%clk 0:01:06]}  Qe3 {[%clk 0:01:07]} 33. Rd1 {[%clk 0:01:02]}  e4 {[%clk 0:01:06]} 34. fxe4 {[%clk 0:01:01]}  dxe4 {[%clk 0:01:05]} 35. Rd8+ {[%clk 0:00:59]}  Kf7 {[%clk 0:01:02]} 36. Rd7+ {[%clk 0:00:57]}  Ke6 {[%clk 0:01:02]} 37. Rcd2 {[%clk 0:00:56]}  Qf3+ {[%clk 0:00:57]} 38. Kg1 {[%clk 0:00:50]}  Rb1+ {[%clk 0:00:56]} 39. Nd1 {[%clk 0:00:50]}  Qg4+ {[%clk 0:00:41]} 40. Kf2 {[%clk 0:00:48]}  Qh4+ {[%clk 0:00:35]} 41. Ke3 {[%clk 0:00:43]}  Qh3+ {[%clk 0:00:33]} 42. Kxe4 {[%clk 0:00:40]}  Kf6 {[%clk 0:00:32]} 43. R7d6+ {[%clk 0:00:19]}  Kg5 {[%clk 0:00:32]} 44. Ne3 {[%clk 0:00:17]}  Re1 {[%clk 0:00:27]} 45. R6d5+ {[%clk 0:00:17]}  Kh6 {[%clk 0:00:26]} 46. R2d3 {[%clk 0:00:13]}  Qg4+ {[%clk 0:00:20]} 47. Ke5 {[%clk 0:00:12]}  Qg5+ {[%clk 0:00:20]} 48. Kd6 {[%clk 0:00:12]}  Qf6+ {[%clk 0:00:19]} 49. Kc5 {[%clk 0:00:11]}  Qe7+ {[%clk 0:00:19]} 50. Kd4 {[%clk 0:00:11]}  Qf6+ {[%clk 0:00:15]} 51. Kc5 {[%clk 0:00:10]}  Qf8+ {[%clk 0:00:13]} 52. Kc6 {[%clk 0:00:10]}  Qe8+ {[%clk 0:00:13]} 53. Kc5 {[%clk 0:00:06]}  Rxe3 {[%clk 0:00:13]} 54. Rxe3 {[%clk 0:00:06]}  Qxe3+ {[%clk 0:00:11]} 55. Kc4 {[%clk 0:00:07]}  Qe2+ {[%clk 0:00:11]} 56. Kc5 {[%clk 0:00:06]}  Qxh2 {[%clk 0:00:11]} 57. c4 {[%clk 0:00:06]}  Qc7+ {[%clk 0:00:10]} 58. Kd4 {[%clk 0:00:06]}  a5 {[%clk 0:00:10]} 59. c5 {[%clk 0:00:07]}  a4 {[%clk 0:00:10]} 60. Rd6 {[%clk 0:00:06]}  a3 {[%clk 0:00:10]} 61. Ra6 {[%clk 0:00:06]}  Qd7+ {[%clk 0:00:09]} 62. Kc4 {[%clk 0:00:06]}  Qf7+ {[%clk 0:00:09]} 63. Kb5 {[%clk 0:00:06]}  Qb3+ {[%clk 0:00:08]} 64. Kc6 {[%clk 0:00:06]}  a2 {[%clk 0:00:09]} 65. Kd6 {[%clk 0:00:07]}  Qd1+ {[%clk 0:00:09]} 66. Kc7 {[%clk 0:00:06]}  a1=Q {[%clk 0:00:08]} 67. Rxa1 {[%clk 0:00:07]}  Qxa1 {[%clk 0:00:08]} 68. c6 {[%clk 0:00:08]}  Qa6 {[%clk 0:00:07]} 69. Kd7 {[%clk 0:00:08]}  Kg5 {[%clk 0:00:08]} 70. c7 {[%clk 0:00:09]}  h5 {[%clk 0:00:05]} 71. c8=Q {[%clk 0:00:10]}  Qxc8+ {[%clk 0:00:05]} 72. Kxc8 {[%clk 0:00:10]}  h4 {[%clk 0:00:05]} 73. Kd7 {[%clk 0:00:11]}  h3 {[%clk 0:00:05]} 74. Ke7 {[%clk 0:00:12]}  h2 {[%clk 0:00:06]} 75. Kf7 {[%clk 0:00:13]}  h1=Q {[%clk 0:00:06]} 76. Kg7 {[%clk 0:00:14]}  Qc6 {[%clk 0:00:06]} 77. Kh8 {[%clk 0:00:15]}  Qc7 {[%clk 0:00:05]} 78. Kg8 {[%clk 0:00:16]}  Kf6 {[%clk 0:00:05]} 79. Kh8 {[%clk 0:00:10]}  Qg7# {[%clk 0:00:05]} 0-1


[Site "https://www.chess.com"]